fUSD/lending_fUSD_20241107
["ID","MTS","AMOUNT","RATE_DAILY","PERIOD"]
[341541346,1730970648444,-1474.93,0.00030136,4]
[341541347,1730970648455,-2529.34,0.00030136,4]
[341541348,1730970648463,-500.0,0.00030136,4]
[341541349,1730970648473,-500.0,0.00030136,4]
[341541350,1730970648482,-556.74,0.00030136,4]
[341541351,1730970648491,-6278.21,0.00030136,4]
[341541352,1730970648500,-500.0,0.00030136,4]
[341541353,1730970648509,-500.0,0.00030136,4]
[341541354,1730970648519,-500.0,0.00030136,4]
[341541355,1730970648529,-500.0,0.00030136,4]
[341541356,1730970648538,-833.23,0.00030136,4]
[341541357,1730970648547,-500.0,0.00030136,4]
[341541358,1730970648557,-500.0,0.00030136,4]
[341541359,1730970648566,-602.00587971,0.00030136,4]
[341541360,1730970648575,-646.88,0.00030136,4]
[341541361,1730970648584,-589.80914109,0.00030136,4]
[341541362,1730970648594,-500.0,0.00030136,4]
[341541363,1730970648603,-854.7,0.00030136,4]
[341541364,1730970648612,-500.0,0.00030136,4]
[341541365,1730970648621,-751.11,0.00030136,4]
[341541366,1730970648631,-1182.01,0.00030136,4]
[341541367,1730970648640,-500.0,0.00030136,4]
[341541368,1730970648649,-500.0,0.00030136,4]
[341541369,1730970648658,-1269.36,0.00030136,4]
[341541370,1730970648667,-860.56,0.00030136,4]
[341541371,1730970648677,-500.0,0.00030136,4]
[341541372,1730970648686,-500.0,0.00030136,4]
[341541373,1730970648695,-500.0,0.00030136,4]
[341541374,1730970648705,-581.6,0.00030136,4]
[341541375,1730970648715,-581.6,0.00030136,4]
[341541376,1730970648724,-581.6,0.00030136,4]
[341541377,1730970648733,-581.6,0.00030136,4]
[341541378,1730970648742,-500.0,0.00030136,4]
[341541379,1730970648751,-500.0,0.00030136,4]
[341541380,1730970648761,-500.0,0.00030136,4]
[341541381,1730970648770,-2250.39,0.00030136,4]
[341541382,1730970648780,-605.59,0.00030136,4]
[341541383,1730970648790,-4861.6,0.00030136,4]
[341541384,1730970648799,-1752.01,0.00030136,4]
[341541385,1730970648809,-500.0,0.00030136,4]
[341541386,1730970648818,-1526.13,0.00030136,4]
[341541387,1730970648828,-500.0,0.00030136,4]
[341541388,1730970648838,-613.29,0.00030136,4]
[341541389,1730970648847,-597.66,0.00030136,4]
[341541390,1730970648857,-500.0,0.00030136,4]
[341541391,1730970648866,-1057.11,0.00030136,4]
[341541392,1730970648877,-500.0,0.00030136,4]
[341541393,1730970648886,-501.11,0.00030136,4]
[341541394,1730970648896,-500.0,0.00030136,4]
[341541395,1730970648905,-537.78327924,0.00030136,4]
[341541396,1730970648915,-500.0,0.00030136,4]
[341541397,1730970648924,-500.0,0.00030136,4]
[341541398,1730970648934,-500.0,0.00030136,4]
[341541399,1730970648943,-500.0,0.00030136,4]
[341541400,1730970648953,-1693.8,0.00030136,4]
[341541401,1730970648962,-2661.45,0.00030136,4]
[341541402,1730970648972,-689.5,0.00030136,4]
[341541403,1730970648982,-500.0,0.00030136,4]
[341541404,1730970648991,-553.05,0.00030136,4]
[341541405,1730970649000,-500.0,0.00030136,4]
[341541406,1730970649010,-500.0,0.00030136,4]
[341541407,1730970649019,-500.0,0.00030136,4]
[341541408,1730970649029,-500.0,0.00030136,4]
[341541409,1730970649040,-500.0,0.00030136,4]
[341541410,1730970649050,-500.0,0.00030136,4]
[341541411,1730970649059,-500.0,0.00030136,4]
[341541412,1730970649069,-500.0,0.00030136,4]
[341541413,1730970649078,-287.24492,0.00030136,7]
[341541414,1730970649088,-500.0,0.00030136,4]
[341541415,1730970649097,-410.79740099,0.00030136,4]
[341541416,1730970649107,-799.21,0.00030136,4]
[341541417,1730970649116,-500.0,0.00030136,4]
[341541418,1730970649126,-500.0,0.00030136,4]
[341541419,1730970649136,-500.0,0.00030136,4]
[341541420,1730970649148,-500.0,0.00030136,4]
[341541421,1730970649158,-1070.37,0.00030136,4]
[341541422,1730970649167,-500.0,0.00030136,4]
[341541423,1730970649177,-500.0,0.00030136,4]
[341541424,1730970649187,-500.0,0.00030136,4]
[341541425,1730970649198,-2460.97,0.00030136,4]
[341541426,1730970649208,-500.0,0.00030136,4]
[341541427,1730970649219,-1533.03,0.00030136,4]
[341541428,1730970649229,-828.97,0.00030136,4]
[341541429,1730970649238,-500.0,0.00030136,4]
[341541430,1730970649247,-687.27,0.00030136,4]
[341541431,1730970649257,-699.61,0.00030136,4]
[341541432,1730970649267,-500.0,0.00030136,4]
[341541433,1730970649277,-724.63,0.00030136,4]
[341541434,1730970649287,-871.61,0.00030136,4]
[341541435,1730970649296,-529.22,0.00030136,4]
[341541436,1730970649306,-500.0,0.00030136,4]
[341541437,1730970649315,-500.0,0.00030136,4]
[341541438,1730970649324,-1212.05,0.00030136,4]
[341541439,1730970649334,-2108.8,0.00030136,4]
[341541440,1730970649343,-500.0,0.00030136,4]
[341541441,1730970649352,-500.0,0.00030136,4]
[341541442,1730970649362,-1505.57,0.00030136,4]
[341541443,1730970649371,-500.0,0.00030136,4]
[341541444,1730970649380,-1138.4,0.00030136,4]
[341541445,1730970649390,-2353.59,0.00030136,4]
[341541446,1730970649400,-500.0,0.00030136,4]
[341541447,1730970649409,-639.58,0.00030136,4]
[341541448,1730970649419,-719.32,0.00030136,4]
[341541449,1730970649429,-1766.91,0.00030136,4]
[341541450,1730970649439,-500.0,0.00030136,4]
[341541451,1730970649448,-743.73,0.00030136,4]
[341541452,1730970649458,-500.0,0.00030136,4]
[341541453,1730970649467,-1330.84,0.00030136,4]
[341541454,1730970649476,-500.0,0.00030136,4]
[341541455,1730970649485,-2834.07,0.00030136,4]
[341541456,1730970649494,-500.0,0.00030136,4]
[341541457,1730970649504,-500.0,0.00030136,4]
[341541458,1730970649513,-4688.9,0.00030136,4]
[341541459,1730970649523,-1423.99,0.00030136,4]
[341541460,1730970649533,-1117.89,0.00030136,4]
[341541461,1730970649542,-500.0,0.00030136,4]
[341541462,1730970649552,-638.18,0.00030136,4]
[341541463,1730970649561,-853.84,0.00030136,4]
[341541464,1730970649570,-509.16,0.00030136,4]
[341541465,1730970649579,-500.0,0.00030136,4]
[341541466,1730970649588,-610.62,0.00030136,4]
[341541467,1730970649598,-1327.11,0.00030136,4]
[341541468,1730970649608,-500.0,0.00030136,4]
[341541469,1730970649618,-500.0,0.00030136,4]
[341541470,1730970649627,-500.0,0.00030136,4]
[341541471,1730970649636,-500.0,0.00030136,4]
[341541472,1730970649645,-2530.57,0.00030136,4]
[341541473,1730970649654,-978.02,0.00030136,4]
[341541474,1730970649664,-500.0,0.00030136,4]
[341541475,1730970649673,-2264.34,0.00030136,4]
[341541476,1730970649683,-1854.85,0.00030136,4]
[341541477,1730970649692,-500.0,0.00030136,4]
[341541478,1730970649701,-500.0,0.00030136,4]
[341541479,1730970649710,-500.0,0.00030136,4]
[341541480,1730970649719,-747.96,0.00030136,4]
[341541481,1730970649728,-500.0,0.00030136,4]
[341541482,1730970649737,-500.0,0.00030136,4]
[341541483,1730970649747,-500.0,0.00030136,4]
[341541484,1730970649756,-1221.75,0.00030136,4]
[341541485,1730970649765,-500.0,0.00030136,4]
[341541486,1730970649776,-3066.75,0.00030136,4]
[341541487,1730970649785,-1449.94,0.00030136,4]
[341541488,1730970649794,-3600.84,0.00030136,4]
[341541489,1730970649804,-787.38,0.00030136,4]
[341541490,1730970649813,-2297.0,0.00030136,4]
[341541491,1730970649822,-500.0,0.00030136,4]
[341541492,1730970649831,-1171.99,0.00030136,4]
[341541493,1730970649840,-500.0,0.00030136,4]
[341541494,1730970649849,-500.0,0.00030136,4]
[341541495,1730970649859,-500.0,0.00030136,4]
[341541496,1730970649868,-743.84,0.00030136,4]
[341541497,1730970649877,-1650.37,0.00030136,4]
[341541498,1730970649887,-781.37,0.00030136,4]
[341541499,1730970649896,-1621.67,0.00030136,4]
[341541500,1730970649905,-500.0,0.00030136,4]
[341541501,1730970649915,-1275.55,0.00030136,4]
[341541502,1730970649924,-1389.3,0.00030136,4]
[341541503,1730970649933,-500.0,0.00030136,4]
[341541504,1730970649943,-500.0,0.00030136,4]
[341541505,1730970649953,-500.0,0.00030136,4]
[341541506,1730970649962,-993.68,0.00030136,4]
[341541507,1730970649972,-1241.2,0.00030136,4]
[341541508,1730970649982,-500.0,0.00030136,4]
[341541509,1730970649991,-594.26,0.00030136,4]
[341541510,1730970650000,-500.0,0.00030136,4]
[341541511,1730970650009,-500.0,0.00030136,4]
[341541512,1730970650019,-583.04,0.00030136,4]
[341541513,1730970650029,-1246.86,0.00030136,4]
[341541514,1730970650038,-858.15,0.00030136,4]
[341541515,1730970650047,-500.0,0.00030136,4]
[341541516,1730970650057,-3002.08,0.00030136,4]
[341541517,1730970650066,-530.40392172,0.00030136,4]
[341541518,1730970650075,-500.0,0.00030136,4]
[341541519,1730970650085,-500.0,0.00030136,4]
[341541520,1730970650094,-500.0,0.00030136,4]
[341541521,1730970650104,-1995.43,0.00030136,4]
[341541522,1730970650114,-500.0,0.00030136,4]
[341541523,1730970650123,-500.0,0.00030136,4]
[341541524,1730970650132,-749.34,0.00030136,4]
[341541525,1730970650146,-2745.81,0.00030136,4]
[341541526,1730970650155,-1261.68,0.00030136,4]
[341541527,1730970650164,-500.0,0.00030136,4]
[341541528,1730970650173,-500.0,0.00030136,4]
[341541529,1730970650183,-534.94211789,0.00030136,4]
[341541530,1730970650192,-500.0,0.00030136,4]
[341541531,1730970650201,-1438.38,0.00030136,4]
[341541532,1730970650211,-516.13251196,0.00030136,4]
[341541533,1730970650221,-1634.94,0.00030136,4]
[341541534,1730970650231,-512.97,0.00030136,4]
[341541535,1730970650241,-500.0,0.00030136,4]
[341541536,1730970650250,-500.0,0.00030136,4]
[341541537,1730970650259,-500.0,0.00030136,4]
[341541538,1730970650268,-500.0,0.00030136,4]
[341541539,1730970650279,-657.21,0.00030136,4]
[341541540,1730970650288,-500.0,0.00030136,4]
[341541541,1730970650297,-179.49,0.00030136,2]
[341541542,1730970650307,-935.04,0.00030136,4]
[341541543,1730970650316,-500.0,0.00030136,4]
[341541544,1730970650325,-533.3,0.00030136,4]
[341541545,1730970650334,-151.0,0.00030136,7]
[341541546,1730970650343,-500.0,0.00030136,4]
[341541547,1730970650353,-503.49283944,0.00030136,4]
[341541548,1730970650362,-500.17,0.00030136,4]
[341541549,1730970650372,-889.54,0.00030136,4]
[341541550,1730970650381,-243.01972306,0.00030136,4]
[341541551,1730970650390,-500.0,0.00030136,4]
[341541552,1730970650401,-500.0,0.00030136,4]
[341541553,1730970650410,-519.06,0.00030136,4]
[341541554,1730970650420,-500.0,0.00030136,4]
[341541555,1730970650430,-500.0,0.00030136,4]
[341541556,1730970650440,-1138.18,0.00030136,4]
[341541557,1730970650450,-500.0,0.00030136,4]
[341541558,1730970650461,-500.0,0.00030136,4]
[341541559,1730970650471,-1447.91,0.00030136,4]
[341541560,1730970650481,-500.0,0.00030136,4]
[341541561,1730970650490,-500.0,0.00030136,4]
[341541562,1730970650499,-500.0,0.00030136,4]
[341541563,1730970650508,-950.89,0.00030136,4]
[341541564,1730970650517,-500.0,0.00030136,4]
[341541565,1730970650527,-500.0,0.00030136,4]
[341541566,1730970650536,-4140.31,0.00030136,4]
[341541567,1730970650545,-500.0,0.00030136,4]
[341541568,1730970650556,-741.6,0.00030136,4]
[341541569,1730970650565,-1679.11,0.00030136,4]
[341541570,1730970650574,-566.35,0.00030136,4]
[341541571,1730970650584,-630.96,0.00030136,4]
[341541572,1730970650594,-557.0,0.00030136,4]
[341541573,1730970650604,-500.0,0.00030136,4]
[341541574,1730970650613,-1728.46,0.00030136,4]
[341541575,1730970650622,-500.0,0.00030136,4]
[341541576,1730970650632,-559.58,0.00030136,4]
[341541577,1730970650641,-500.0,0.00030136,4]
[341541578,1730970650651,-500.0,0.00030136,4]
[341541579,1730970650660,-502.99624902,0.00030136,4]
[341541580,1730970650897,-151.0,0.00030136,7]
[341541581,1730970650907,-500.0,0.00030136,4]
[341541582,1730970650916,-500.0,0.00030136,4]
[341541583,1730970650925,-500.0,0.00030136,4]
[341541584,1730970650934,-427.61,0.00030137,2]
[341541585,1730970650944,-427.61,0.00030137,2]
[341541586,1730970650953,-427.61,0.00030137,2]
[341541587,1730970650964,-427.61,0.00030137,2]
[341541588,1730970650975,-761.84,0.00030137,2]
[341541589,1730970650985,-761.84,0.00030137,2]
[341541590,1730970650996,-761.84,0.00030137,2]
[341541591,1730970651006,-1523.68,0.00030137,2]
[341541592,1730970651016,-761.84,0.00030137,2]
[341541593,1730970651026,-761.84,0.00030137,2]
[341541594,1730970651036,-761.84,0.00030137,2]
[341541595,1730970651046,-761.84,0.00030137,2]
[341541596,1730970651055,-761.84,0.00030137,2]
[341541597,1730970651065,-500.0,0.00030173,5]
[341541598,1730970651075,-1259.481,0.00030236,2]
[341541599,1730970651084,-452.0,0.00030236,2]
[341541600,1730970651094,-559.0,0.00030236,2]
[341541601,1730970651103,-1989.0,0.00030236,2]
[341541602,1730970651113,-150.0,0.00030315,2]
[341541603,1730970651122,-3836.6,0.00030332,2]
[341541604,1730970651131,-150.0,0.00030333,2]
[341541605,1730970651144,-150.0,0.00030346,2]
[341541606,1730970651153,-150.0,0.00030353,2]
[341541607,1730970651163,-150.0,0.00030359,2]
[341541608,1730970651172,-251.83551537,0.0003036,2]
[341541609,1730970651182,-150.0,0.00030368,2]
[341541610,1730970651192,-150.0,0.00030371,2]
[341541611,1730970651201,-811.29024,0.0003038,2]
[341541612,1730970651211,-150.0,0.00030386,2]
[341541613,1730970651222,-150.0,0.0003039,2]
[341541614,1730970651232,-1795.0,0.00030396,2]
[341541615,1730970651242,-1258.0,0.00030396,2]
[341541616,1730970651251,-2908.0,0.00030396,2]
[341541617,1730970651260,-813.0,0.00030396,2]
[341541618,1730970651270,-814.576,0.00030396,2]
[341541619,1730970651280,-3397.831,0.00030396,2]
[341541620,1730970651291,-500.0,0.00030399,4]
[341541621,1730970651300,-511.21,0.00030399,4]
[341541622,1730970651310,-246.32896926,0.00030399,2]
[341541623,1730970651320,-581.6,0.00030399,4]
[341541624,1730970651329,-581.6,0.00030399,4]
[341541625,1730970651338,-500.0,0.00030399,4]
[341541626,1730970651347,-8613.824707,0.000304,2]
[341541627,1730970651357,-500.0,0.00030409,4]
[341541628,1730970651367,-500.0,0.00030409,4]
[341541629,1730970651376,-511.21,0.00030409,4]
[341541630,1730970651386,-511.21,0.00030409,4]
[341541631,1730970651395,-511.21,0.00030409,4]
[341541632,1730970651405,-581.6,0.00030409,4]
[341541633,1730970651415,-581.6,0.00030409,4]
[341541634,1730970651424,-500.0,0.00030409,4]
[341541635,1730970651433,-500.0,0.00030409,4]
[341541636,1730970651443,-150.0,0.00030409,2]
[341541637,1730970651452,-321.12936156,0.0003041,4]
[341541638,1730970651461,-500.0,0.0003041,4]
[341541639,1730970651471,-241.42216,0.0003041,4]
[341541640,1730970651481,-823.52,0.0003041,4]
[341541641,1730970651490,-500.0,0.0003041,4]
[341541642,1730970651500,-500.0,0.0003041,4]
[341541643,1730970651509,-1771.91,0.0003041,4]
[341541644,1730970651519,-500.0,0.0003041,4]
[341541645,1730970651531,-500.0,0.0003041,4]
[341541646,1730970651540,-500.0,0.0003041,4]
[341541647,1730970651549,-235.327917,0.0003041,4]
[341541648,1730970651559,-1338.9,0.0003041,4]
[341541649,1730970651568,-500.0,0.0003041,4]
[341541650,1730970651578,-500.0,0.0003041,4]
[341541651,1730970651587,-500.0,0.0003041,4]
[341541652,1730970651597,-500.0,0.0003041,4]
[341541653,1730970651606,-626.54,0.0003041,4]
[341541654,1730970651616,-500.0,0.0003041,4]
[341541655,1730970651626,-500.0,0.0003041,4]
[341541656,1730970651635,-500.0,0.0003041,4]
[341541657,1730970651644,-500.0,0.0003041,4]
[341541658,1730970651654,-551.02,0.0003041,4]
[341541659,1730970651664,-500.0,0.0003041,4]
[341541660,1730970651673,-500.0,0.0003041,4]
[341541661,1730970651683,-1203.55,0.0003041,4]
[341541662,1730970651692,-500.0,0.0003041,4]
[341541663,1730970651702,-500.0,0.0003041,4]
[341541664,1730970651712,-527.12,0.0003041,4]
[341541665,1730970651721,-1513.34,0.0003041,4]
[341541666,1730970651730,-500.0,0.0003041,4]
[341541667,1730970651739,-500.0,0.0003041,4]
[341541668,1730970651748,-500.0,0.0003041,4]
[341541669,1730970651757,-500.0,0.0003041,4]
[341541670,1730970651767,-628.57,0.0003041,4]
[341541671,1730970651778,-500.0,0.0003041,4]
[341541672,1730970651787,-500.0,0.0003041,4]
[341541673,1730970651796,-500.0,0.0003041,4]
[341541674,1730970651805,-500.0,0.0003041,4]
[341541675,1730970651815,-500.0,0.0003041,4]
[341541676,1730970651824,-500.0,0.0003041,4]
[341541677,1730970651834,-1000.0,0.0003041,10]
[341541678,1730970651843,-500.0,0.0003041,4]
[341541679,1730970651852,-500.0,0.0003041,4]
[341541680,1730970651862,-682.27,0.0003041,4]
[341541681,1730970651871,-754.62,0.0003041,4]
[341541682,1730970651880,-573.55,0.0003041,4]
[341541683,1730970651889,-500.0,0.0003041,4]
[341541684,1730970651898,-1264.68,0.0003041,4]
[341541685,1730970651907,-558.59,0.0003041,4]
[341541686,1730970651917,-633.66,0.0003041,4]
[341541687,1730970651927,-1221.32,0.0003041,4]
[341541688,1730970651936,-500.0,0.0003041,4]
[341541689,1730970651945,-500.0,0.0003041,4]
[341541690,1730970651955,-500.0,0.0003041,4]
[341541691,1730970651966,-537.36,0.0003041,4]
[341541692,1730970651975,-514.49425463,0.0003041,4]
[341541693,1730970651985,-844.66,0.0003041,4]
[341541694,1730970651994,-500.0,0.0003041,4]
[341541695,1730970652004,-500.0,0.0003041,4]
[341541696,1730970652013,-500.0,0.0003041,4]
[341541697,1730970652022,-500.0,0.0003041,4]
[341541698,1730970652033,-458.70635774,0.0003041,4]
[341541699,1730970652056,-41.29364226,0.0003041,4]
[341541700,1730970652066,-583.53,0.0003041,4]
[341541701,1730970652076,-500.0,0.0003041,4]
[341541702,1730970652086,-611.51,0.0003041,4]
[341541703,1730970652095,-439.70504367,0.0003041,4]
[341541704,1730970652114,-301.25385499,0.0003041,4]
[341541705,1730970652252,150.0,0.00018123,2]
[341541706,1730970652635,-502.5018573,0.00030136,4]
[341541707,1730970652644,-29.52137935,0.00030136,7]
[341541708,1730970652671,-121.47862065,0.00030136,7]
[341541709,1730970652680,-251.36362549,0.0003041,4]
[341541710,1730970661415,300.0,0.00019725,2]
[341541711,1730970666955,420.0,0.00021484,2]
[341541712,1730970667750,587.0,0.00023401,2]
[341541713,1730970668611,793.0,0.00025488,2]
[341541714,1730970743419,691.18025739,0.0002741,2]
[341541716,1730971064146,-250.0,0.00021,2]
[341541717,1730971064168,-300.0,0.00023,2]
[341541718,1730971064190,-500.0,0.00024932,2]
[341541719,1730971064211,-350.0,0.00025,2]
[341541720,1730971064234,-2174.0,0.000263,3]
[341541721,1730971064259,-400.0,0.00027,2]
[341541722,1730971064282,-568.02974261,0.0002741,2]
[341541723,1730971064304,-160.0,0.00028269,120]
[341541724,1730971064325,-215.92,0.00028328,2]
[341541725,1730971064350,-150.0,0.00028564,2]
[341541726,1730971064377,-168.98,0.00028719,2]
[341541727,1730971064397,-1852.42,0.00028781,2]
[341541728,1730971064418,-192.91,0.0002884,2]
[341541729,1730971064439,-2751.0,0.00028943,2]
[341541730,1730971064458,-601.56,0.00028943,2]
[341541731,1730971064480,-189.81,0.00028954,30]
[341541732,1730971064500,-450.0,0.00029,2]
[341541733,1730971064521,-200.0,0.00029027,7]
[341541734,1730971064542,-168.71,0.00029058,2]
[341541735,1730971064562,-999.99,0.00029058,2]
[341541736,1730971064583,-250.0,0.00029191,2]
[341541737,1730971064606,-1015.0,0.00029319,5]
[341541738,1730971064626,-2238.5,0.00029332,2]
[341541739,1730971064646,-200.0,0.00029478,2]
[341541740,1730971064666,-250.0,0.00029548,2]
[341541741,1730971064686,-1000.0,0.00029555,2]
[341541742,1730971064706,-4255.64,0.00029555,2]
[341541743,1730971064726,-1259.21,0.00029673,2]
[341541744,1730971064745,-184.93,0.00029686,2]
[341541745,1730971064765,-215.92,0.00029744,2]
[341541746,1730971064785,-336.25712948,0.00029756,2]
[341541747,1730971064804,-150.0,0.00029934,2]
[341541748,1730971064824,-30317.8268,0.00029935,2]
[341541749,1730971064844,-4231.0708,0.00029935,2]
[341541750,1730971064863,-500.0,0.00029935,2]
[341541751,1730971064882,-336.25712948,0.00029998,2]
[341541752,1730971064902,-172.528,0.0003,2]
[341541753,1730971064922,-172.528,0.0003,2]
[341541754,1730971064942,-500.0,0.0003,3]
[341541755,1730971064962,-246.45,0.0003,3]
[341541756,1730971064982,-500.0,0.0003,3]
[341541757,1730971081442,23900.0,0.00029344,2]
[341541758,1730971091948,-2500.0,0.00030036,2]
[341541759,1730971091970,-315.36759368,0.00030036,2]
[341541760,1730971091991,-209.14,0.00030096,2]
[341541761,1730971092013,-182.85,0.00030126,10]
[341541762,1730971092037,-620.76221958,0.00030133,2]
[341541763,1730971092059,-500.0,0.00030133,2]
[341541764,1730971092080,-500.0,0.00030133,2]
[341541765,1730971092101,-500.0,0.00030133,2]
[341541766,1730971092129,-611.44436535,0.00030133,2]
[341541767,1730971092150,-500.0,0.00030133,2]
[341541768,1730971092171,-500.0,0.00030133,2]
[341541769,1730971092193,-500.0,0.00030133,2]
[341541770,1730971092214,-500.0,0.00030133,2]
[341541771,1730971092235,-16708.98821982,0.00030134,2]
[341541772,1730971111090,150.0,0.00018123,2]
[341541773,1730971117416,212.4825,0.00017565,2]
[341541774,1730971119254,150.0,0.00019,2]
[341541775,1730971130889,-2507.0,0.000263,3]
[341541776,1730971130914,-212.4825,0.00028337,2]
[341541777,1730971130938,-810.54,0.00029346,2]
[341541778,1730971130964,-202.33,0.00029346,2]
[341541779,1730971130988,-221.23,0.00029384,2]
[341541780,1730971131013,-1379.963489,0.0002985,2]
[341541781,1730971131036,-652.35675,0.0003,2]
[341541782,1730971131060,-652.35675,0.0003,2]
[341541783,1730971131085,-51150.2682,0.00030036,2]
[341541784,1730971131111,-152.37,0.00030125,10]
[341541785,1730971131135,-761.88,0.00030126,10]
[341541786,1730971131161,-44558.72433638,0.00030134,2]
[341541787,1730971131186,-500.0,0.00030135,2]
[341541788,1730971131211,-500.0,0.00030135,2]
[341541789,1730971131237,-500.0,0.00030135,2]
[341541790,1730971131261,-500.0,0.00030135,2]
[341541791,1730971131290,-500.0,0.00030135,2]
[341541792,1730971131317,-500.0,0.00030135,2]
[341541793,1730971131344,-500.0,0.00030135,2]
[341541794,1730971131370,-500.0,0.00030135,2]
[341541795,1730971131396,-500.0,0.00030135,2]
[341541796,1730971131421,-500.0,0.00030135,2]
[341541797,1730971131447,-500.0,0.00030135,2]
[341541798,1730971131473,-500.0,0.00030135,2]
[341541799,1730971131497,-500.0,0.00030135,2]
[341541800,1730971131522,-352.87697318,0.00030135,2]
[341541801,1730971131547,-500.0,0.00030135,2]
[341541802,1730971131572,-500.0,0.00030135,2]
[341541803,1730971131597,-500.0,0.00030135,2]
[341541804,1730971131622,-500.0,0.00030135,2]
[341541805,1730971131649,-500.0,0.00030135,2]
[341541806,1730971131675,-500.0,0.00030135,2]
[341541807,1730971131700,-450.0,0.00030135,2]
[341541808,1730971131725,-688.94,0.00030135,4]
[341541809,1730971131750,-688.94,0.00030135,4]
[341541810,1730971131775,-688.94,0.00030135,4]
[341541811,1730971131800,-720.52297179,0.00030135,3]
[341541812,1730971131824,-456.82715171,0.00030135,2]
[341541813,1730971131848,-337.69993852,0.00030136,4]
[341541814,1730971131871,-502.15506397,0.00030136,4]
[341541815,1730971131894,-500.0,0.00030136,4]
[341541816,1730971131919,-500.0,0.00030136,4]
[341541817,1730971131943,-502.86547373,0.00030136,4]
[341541818,1730971131967,-500.0,0.00030136,4]
[341541819,1730971131992,-500.0,0.00030136,4]
[341541820,1730971132016,-500.0,0.00030136,4]
[341541821,1730971132040,-500.0,0.00030136,4]
[341541822,1730971132064,-526.82,0.00030136,4]
[341541823,1730971132088,-500.0,0.00030136,4]
[341541824,1730971132113,-523.29,0.00030136,4]
[341541825,1730971132139,-500.0,0.00030136,4]
[341541826,1730971132165,-500.0,0.00030136,4]
[341541827,1730971132188,-399.8086372,0.00030136,4]
[341541828,1730971132212,-607.39,0.00030136,4]
[341541829,1730971132236,-1111.38,0.00030136,4]
[341541830,1730971132260,-500.0,0.00030136,4]
[341541831,1730971132289,-498.26014612,0.00030136,4]
[341541832,1730971132312,-500.0,0.00030136,4]
[341541833,1730971132336,-1230.57,0.00030136,4]
[341541834,1730971132362,-500.0,0.00030136,4]
[341541835,1730971132386,-500.0,0.00030136,4]
[341541836,1730971132412,-500.0,0.00030136,4]
[341541837,1730971132435,-648.65,0.00030136,4]
[341541838,1730971132457,-921.78,0.00030136,4]
[341541839,1730971132480,-535.45616548,0.00030136,4]
[341541840,1730971132502,-500.0,0.00030136,4]
[341541841,1730971132525,-215.56323139,0.00030136,4]
[341541842,1730971132548,-896.22,0.00030136,4]
[341541843,1730971132570,-500.0,0.00030136,4]
[341541844,1730971132594,-514.19,0.00030136,4]
[341541845,1730971132617,-1162.82,0.00030136,4]
[341541846,1730971132641,-500.0,0.00030136,4]